[Event "Late-Titled-Tuesday-Blitz-February-06-2024"]
[Site "Chess.com"]
[Date "2024.02.06"]
[Round "1"]
[White "GMG"]
[Black "delqate"]
[Result "1-0"]
[WhiteElo "2679"]
[BlackElo "2363"]
[TimeControl "180+1"]
[EndTime "14:07:55 PST"]
[Termination "GMG won on time"]

1. Nf3 {[%clk 0:03:00.9]} 1... d5 {[%clk 0:02:59.2]} 2. g3 {[%clk 0:03:00.8]}
2... Nf6 {[%clk 0:02:57.6]} 3. Bg2 {[%clk 0:03:01]} 3... Bf5 {[%clk 0:02:57.7]}
4. c4 {[%clk 0:02:58.9]} 4... c6 {[%clk 0:02:55.1]} 5. Qb3 {[%clk 0:02:58.5]}
5... Qb6 {[%clk 0:02:54.6]} 6. d3 {[%clk 0:02:58.8]} 6... h6 {[%clk 0:02:51.5]}
7. Be3 {[%clk 0:02:53.6]} 7... Qxb3 {[%clk 0:02:10.3]} 8. axb3 {[%clk
0:02:54.5]} 8... a6 {[%clk 0:02:10.7]} 9. Nc3 {[%clk 0:02:50.1]} 9... e6 {[%clk
0:02:10.6]} 10. Nd4 {[%clk 0:02:41.5]} 10... Bh7 {[%clk 0:02:09.8]} 11. Nc2
{[%clk 0:02:41.6]} 11... Nbd7 {[%clk 0:02:08.3]} 12. b4 {[%clk 0:02:40.6]} 12...
Be7 {[%clk 0:01:57.8]} 13. b3 {[%clk 0:02:29.2]} 13... O-O {[%clk 0:01:53.9]}
14. O-O {[%clk 0:02:25.1]} 14... Rfd8 {[%clk 0:01:50.1]} 15. Rfc1 {[%clk
0:02:21.7]} 15... Rac8 {[%clk 0:01:49.5]} 16. h3 {[%clk 0:02:16.1]} 16... g5
{[%clk 0:01:32.7]} 17. Na4 {[%clk 0:02:07.3]} 17... Bg6 {[%clk 0:01:22.8]} 18.
Nb6 {[%clk 0:02:06.2]} 18... Nxb6 {[%clk 0:01:21.8]} 19. Bxb6 {[%clk 0:02:07.1]}
19... Rd7 {[%clk 0:01:22.1]} 20. Bc5 {[%clk 0:01:57.2]} 20... Kg7 {[%clk
0:01:01.2]} 21. Bxe7 {[%clk 0:01:46.5]} 21... Rxe7 {[%clk 0:01:02.1]} 22. Na3
{[%clk 0:01:38.1]} 22... Rec7 {[%clk 0:00:59.9]} 23. Ra2 {[%clk 0:01:35.8]}
23... Kf8 {[%clk 0:00:58.8]} 24. Rd2 {[%clk 0:01:34]} 24... Ke7 {[%clk
0:00:58.4]} 25. Nb1 {[%clk 0:01:25.2]} 25... Nd7 {[%clk 0:00:50.3]} 26. Nc3
{[%clk 0:01:23.4]} 26... h5 {[%clk 0:00:48.3]} 27. f4 {[%clk 0:01:07.5]} 27...
gxf4 {[%clk 0:00:43.9]} 28. gxf4 {[%clk 0:01:08.4]} 28... h4 {[%clk 0:00:44.5]}
29. Kf2 {[%clk 0:01:08.2]} 29... Rg8 {[%clk 0:00:43.5]} 30. cxd5 {[%clk
0:01:02.3]} 30... Nf6 {[%clk 0:00:31.1]} 31. dxc6 {[%clk 0:01:00.4]} 31... bxc6
{[%clk 0:00:30.3]} 32. Na4 {[%clk 0:00:59.5]} 32... Rb8 {[%clk 0:00:29.9]} 33.
Nc5 {[%clk 0:00:58.3]} 33... Rb6 {[%clk 0:00:24.8]} 34. Ra2 {[%clk 0:00:55.2]}
34... Nd5 {[%clk 0:00:23.5]} 35. Bxd5 {[%clk 0:00:49.5]} 35... cxd5 {[%clk
0:00:24.4]} 36. Ra4 {[%clk 0:00:47.8]} 36... Bf5 {[%clk 0:00:23.9]} 37. Rca1
{[%clk 0:00:42]} 37... Bxh3 {[%clk 0:00:22.4]} 38. Rh1 {[%clk 0:00:42.5]} 38...
Bf5 {[%clk 0:00:20.6]} 39. Rxh4 {[%clk 0:00:42.7]} 39... d4 {[%clk 0:00:17.2]}
40. Rh8 {[%clk 0:00:40.9]} 40... a5 {[%clk 0:00:13.8]} 41. bxa5 {[%clk
0:00:36.3]} 41... Rb5 {[%clk 0:00:12.9]} 42. b4 {[%clk 0:00:35.4]} 42... Kf6
{[%clk 0:00:05.9]} 43. a6 {[%clk 0:00:30.7]} 43... Ra7 {[%clk 0:00:05.5]} 44.
Rd8 {[%clk 0:00:28.6]} 44... Ke7 {[%clk 0:00:04.3]} 45. Rh8 {[%clk 0:00:28.1]}
45... Kd6 {[%clk 0:00:04.2]} 46. Rh1 {[%clk 0:00:25.7]} 46... e5 {[%clk
0:00:04.5]} 47. fxe5+ {[%clk 0:00:25.3]} 47... Kxe5 {[%clk 0:00:05.4]} 48. Rc1
{[%clk 0:00:25.5]} 48... Bc8 {[%clk 0:00:02.4]} 49. Rc4 {[%clk 0:00:15.6]} 49...
Rb6 {[%clk 0:00:02.5]} 50. Ra5 {[%clk 0:00:14.6]} 50... Bxa6 {[%clk 0:00:02.5]}
51. Nxa6+ {[%clk 0:00:14.7]} 1-0

[Event "Late-Titled-Tuesday-Blitz-February-06-2024"]
[Site "Chess.com"]
[Date "2024.02.06"]
[Round "1"]
[White "JoakimVonAnd"]
[Black "IMSlavin"]
[Result "1-0"]
[WhiteElo "2629"]
[BlackElo "2302"]
[TimeControl "180+1"]
[EndTime "14:07:59 PST"]
[Termination "JoakimVonAnd won by resignation"]

1. c4 {[%clk 0:03:00.9]} 1... Nc6 {[%clk 0:02:59.3]} 2. d4 {[%clk 0:03:00.8]}
2... e5 {[%clk 0:02:59]} 3. dxe5 {[%clk 0:02:58.3]} 3... Nxe5 {[%clk 0:02:58.8]}
4. e3 {[%clk 0:02:57.3]} 4... Nf6 {[%clk 0:02:58.3]} 5. Nf3 {[%clk 0:02:57.5]}
5... Ng6 {[%clk 0:02:53.8]} 6. Nc3 {[%clk 0:02:56.9]} 6... Bc5 {[%clk
0:02:53.5]} 7. Be2 {[%clk 0:02:54.4]} 7... O-O {[%clk 0:02:53.2]} 8. O-O {[%clk
0:02:54.7]} 8... a6 {[%clk 0:02:53.4]} 9. b3 {[%clk 0:02:55.2]} 9... d6 {[%clk
0:02:53.4]} 10. Bb2 {[%clk 0:02:55.6]} 10... Re8 {[%clk 0:02:52.9]} 11. Nd4
{[%clk 0:02:54.2]} 11... Qe7 {[%clk 0:02:47.3]} 12. Bf3 {[%clk 0:02:50.6]} 12...
Rb8 {[%clk 0:02:44.5]} 13. Nd5 {[%clk 0:02:46.4]} 13... Nxd5 {[%clk 0:02:42.4]}
14. Bxd5 {[%clk 0:02:47.3]} 14... Qg5 {[%clk 0:02:27.9]} 15. Qf3 {[%clk
0:02:43.2]} 15... Rf8 {[%clk 0:02:21.2]} 16. Rad1 {[%clk 0:02:37.6]} 16... c6
{[%clk 0:02:03]} 17. Be4 {[%clk 0:02:37.2]} 17... Bg4 {[%clk 0:01:39.8]} 18. Qg3
{[%clk 0:02:35.7]} 18... Qh5 {[%clk 0:01:40]} 19. Bf3 {[%clk 0:02:30.1]} 19...
Ne5 {[%clk 0:01:38.6]} 20. Bxg4 {[%clk 0:02:25.4]} 20... Nxg4 {[%clk 0:01:37.6]}
21. h3 {[%clk 0:02:22.9]} 21... Ne5 {[%clk 0:01:37.2]} 22. Rfe1 {[%clk
0:02:11.1]} 22... Rbd8 {[%clk 0:01:35.2]} 23. Qf4 {[%clk 0:02:01.1]} 23... Ng6
{[%clk 0:01:22.4]} 24. Qg4 {[%clk 0:01:59.4]} 24... Qxg4 {[%clk 0:01:17.5]} 25.
hxg4 {[%clk 0:02:00.3]} 25... Ne5 {[%clk 0:01:17.8]} 26. f3 {[%clk 0:01:59.7]}
26... g6 {[%clk 0:01:16.5]} 27. Re2 {[%clk 0:01:57.6]} 27... Rfe8 {[%clk
0:01:15.9]} 28. Kf2 {[%clk 0:01:57.8]} 28... Nd7 {[%clk 0:01:15.8]} 29. Nc2
{[%clk 0:01:55.1]} 29... Nf8 {[%clk 0:01:11.2]} 30. Bf6 {[%clk 0:01:51.3]} 30...
Rd7 {[%clk 0:01:10.2]} 31. b4 {[%clk 0:01:43.2]} 31... Bb6 {[%clk 0:01:09.4]}
32. a3 {[%clk 0:01:43.1]} 32... Bc7 {[%clk 0:01:09.4]} 33. e4 {[%clk 0:01:38.9]}
33... h6 {[%clk 0:01:07.6]} 34. Bd4 {[%clk 0:01:37.9]} 34... Ne6 {[%clk
0:01:04.8]} 35. Be3 {[%clk 0:01:38.3]} 35... Kg7 {[%clk 0:01:01.3]} 36. Nd4
{[%clk 0:01:37.8]} 36... Bd8 {[%clk 0:00:42.2]} 37. Nxe6+ {[%clk 0:01:26.8]}
37... Rxe6 {[%clk 0:00:42]} 38. Red2 {[%clk 0:01:27.3]} 38... Bg5 {[%clk
0:00:33.2]} 39. Bxg5 {[%clk 0:01:22]} 39... hxg5 {[%clk 0:00:33.2]} 40. c5
{[%clk 0:01:22]} 40... Kf6 {[%clk 0:00:32.1]} 41. cxd6 {[%clk 0:01:10.5]} 41...
Ke5 {[%clk 0:00:28.8]} 42. Ke3 {[%clk 0:01:05.2]} 42... Rexd6 {[%clk 0:00:28.2]}
43. Rxd6 {[%clk 0:00:44.7]} 43... Rxd6 {[%clk 0:00:28.2]} 44. Rxd6 {[%clk
0:00:45.6]} 44... Kxd6 {[%clk 0:00:28.4]} 45. Kd4 {[%clk 0:00:46.3]} 45... b6
{[%clk 0:00:28.3]} 46. g3 {[%clk 0:00:46.5]} 46... f6 {[%clk 0:00:27.8]} 47. f4
{[%clk 0:00:46.5]} 47... gxf4 {[%clk 0:00:20]} 48. gxf4 {[%clk 0:00:46]} 48...
Ke6 {[%clk 0:00:20.2]} 49. a4 {[%clk 0:00:40.5]} 49... Kd6 {[%clk 0:00:19.5]}
50. a5 {[%clk 0:00:39]} 50... c5+ {[%clk 0:00:17.4]} 51. bxc5+ {[%clk
0:00:33.2]} 51... bxc5+ {[%clk 0:00:16.8]} 52. Kc4 {[%clk 0:00:33.8]} 52... Kc6
{[%clk 0:00:16.9]} 53. e5 {[%clk 0:00:21.4]} 53... g5 {[%clk 0:00:13]} 54. exf6
{[%clk 0:00:19.8]} 54... gxf4 {[%clk 0:00:11.3]} 55. f7 {[%clk 0:00:20.2]} 1-0

[Event "Late-Titled-Tuesday-Blitz-February-06-2024"]
[Site "Chess.com"]
[Date "2024.02.06"]
[Round "1"]
[White "GoValya"]
[Black "jens1102"]
[Result "0-1"]
[WhiteElo "2277"]
[BlackElo "2614"]
[TimeControl "180+1"]
[EndTime "14:08:02 PST"]
[Termination "jens1102 won by resignation"]

1. d4 {[%clk 0:02:57.6]} 1... d5 {[%clk 0:02:59.6]} 2. g3 {[%clk 0:02:57.6]}
2... Nf6 {[%clk 0:02:57.7]} 3. Bg2 {[%clk 0:02:57.7]} 3... g6 {[%clk 0:02:58.1]}
4. c4 {[%clk 0:02:57.1]} 4... c6 {[%clk 0:02:58.7]} 5. Nc3 {[%clk 0:02:57]} 5...
Bg7 {[%clk 0:02:59]} 6. Nf3 {[%clk 0:02:57.6]} 6... O-O {[%clk 0:02:58.7]} 7.
O-O {[%clk 0:02:58.1]} 7... Bf5 {[%clk 0:02:42.8]} 8. Ne5 {[%clk 0:02:52.4]}
8... Ne4 {[%clk 0:02:35.8]} 9. Nxe4 {[%clk 0:02:50.6]} 9... Bxe4 {[%clk
0:02:33.4]} 10. Bxe4 {[%clk 0:02:34.6]} 10... dxe4 {[%clk 0:02:34.3]} 11. Be3
{[%clk 0:02:26.8]} 11... Nd7 {[%clk 0:02:25.1]} 12. Nxd7 {[%clk 0:02:17.8]}
12... Qxd7 {[%clk 0:02:26]} 13. Qd2 {[%clk 0:02:11.8]} 13... Rad8 {[%clk
0:02:13.4]} 14. Rad1 {[%clk 0:02:11.9]} 14... e6 {[%clk 0:01:57.9]} 15. Qc2
{[%clk 0:02:07.4]} 15... f5 {[%clk 0:01:53.1]} 16. Bg5 {[%clk 0:02:06.4]} 16...
Rde8 {[%clk 0:01:40.5]} 17. d5 {[%clk 0:01:49.8]} 17... exd5 {[%clk 0:01:37.6]}
18. cxd5 {[%clk 0:01:50.7]} 18... cxd5 {[%clk 0:01:38.3]} 19. Qb3 {[%clk
0:01:50.9]} 19... Rf7 {[%clk 0:01:28.2]} 20. Rxd5 {[%clk 0:01:47.5]} 20... Qe6
{[%clk 0:01:28.4]} 21. Rfd1 {[%clk 0:01:45.4]} 21... h6 {[%clk 0:01:27.1]} 22.
Be3 {[%clk 0:01:41]} 22... Kh7 {[%clk 0:01:23.1]} 23. Bxa7 {[%clk 0:01:21]}
23... Qa6 {[%clk 0:01:18.1]} 24. Bd4 {[%clk 0:01:16.6]} 24... Qxe2 {[%clk
0:01:12]} 25. Bxg7 {[%clk 0:01:16.7]} 25... Rxg7 {[%clk 0:01:12.5]} 26. Rd7
{[%clk 0:01:15.3]} 26... Ree7 {[%clk 0:01:09.7]} 27. Rxe7 {[%clk 0:01:12.2]}
27... Rxe7 {[%clk 0:01:10.6]} 28. Rd8 {[%clk 0:01:12.4]} 28... Rg7 {[%clk
0:00:59]} 29. Qc3 {[%clk 0:00:41.7]} 29... f4 {[%clk 0:00:51.7]} 30. gxf4 {[%clk
0:00:29.3]} 30... g5 {[%clk 0:00:48.7]} 31. f5 {[%clk 0:00:21.3]} 31... Qg4+
{[%clk 0:00:49.2]} 32. Kh1 {[%clk 0:00:21.7]} 32... Qxf5 {[%clk 0:00:48.2]} 33.
Qc8 {[%clk 0:00:17.6]} 33... Qxc8 {[%clk 0:00:26.2]} 34. Rxc8 {[%clk 0:00:18.5]}
34... Kg6 {[%clk 0:00:26.9]} 35. Kg2 {[%clk 0:00:18.2]} 35... Kf5 {[%clk
0:00:27.4]} 36. Kg3 {[%clk 0:00:18.4]} 36... Rd7 {[%clk 0:00:27.7]} 37. Rf8+
{[%clk 0:00:16.5]} 37... Ke5 {[%clk 0:00:27.8]} 38. Re8+ {[%clk 0:00:16.6]}
38... Kf5 {[%clk 0:00:28.1]} 39. Rf8+ {[%clk 0:00:16.9]} 39... Ke5 {[%clk
0:00:28.7]} 40. Re8+ {[%clk 0:00:17.1]} 40... Kd4 {[%clk 0:00:29.2]} 41. Re6
{[%clk 0:00:17]} 41... h5 {[%clk 0:00:29.2]} 42. Rg6 {[%clk 0:00:16.3]} 42...
Rd5 {[%clk 0:00:29.2]} 43. Rg7 {[%clk 0:00:15.8]} 43... Rf5 {[%clk 0:00:28.8]}
44. Rxb7 {[%clk 0:00:14.6]} 44... h4+ {[%clk 0:00:26.6]} 45. Kg2 {[%clk
0:00:15]} 45... g4 {[%clk 0:00:26.9]} 46. Rd7+ {[%clk 0:00:15.4]} 46... Ke5
{[%clk 0:00:26.4]} 47. h3 {[%clk 0:00:15.8]} 47... gxh3+ {[%clk 0:00:26]} 48.
Kxh3 {[%clk 0:00:15.8]} 48... Rxf2 {[%clk 0:00:26.3]} 49. Re7+ {[%clk 0:00:16]}
49... Kd4 {[%clk 0:00:26.1]} 50. Kxh4 {[%clk 0:00:16.5]} 50... Rxb2 {[%clk
0:00:26.1]} 51. Kg3 {[%clk 0:00:15.7]} 51... Rxa2 {[%clk 0:00:25.5]} 52. Rd7+
{[%clk 0:00:16]} 52... Ke3 {[%clk 0:00:25.8]} 53. Re7 {[%clk 0:00:15.8]} 53...
Ra6 {[%clk 0:00:24.6]} 54. Re5 {[%clk 0:00:15.2]} 54... Rg6+ {[%clk 0:00:24.6]}
55. Kh2 {[%clk 0:00:15.5]} 55... Kf3 {[%clk 0:00:25.2]} 56. Rf5+ {[%clk
0:00:15.6]} 56... Ke2 {[%clk 0:00:25.7]} 57. Re5 {[%clk 0:00:14.9]} 57... e3
{[%clk 0:00:26.3]} 58. Kh1 {[%clk 0:00:14.5]} 58... Kf2 {[%clk 0:00:26.7]} 59.
Rf5+ {[%clk 0:00:14.8]} 59... Ke1 {[%clk 0:00:27.3]} 60. Re5 {[%clk 0:00:14.8]}
60... e2 {[%clk 0:00:27.9]} 61. Kh2 {[%clk 0:00:14.8]} 61... Rg4 {[%clk
0:00:28.2]} 62. Re6 {[%clk 0:00:13.7]} 62... Kf2 {[%clk 0:00:27.3]} 63. Rf6+
{[%clk 0:00:13.8]} 63... Ke3 {[%clk 0:00:27.9]} 0-1

[Event "Late-Titled-Tuesday-Blitz-February-06-2024"]
[Site "Chess.com"]
[Date "2024.02.06"]
[Round "1"]
[White "subham777"]
[Black "Konavets"]
[Result "0-1"]
[WhiteElo "2526"]
[BlackElo "3123"]
[TimeControl "180+1"]
[EndTime "14:08:04 PST"]
[Termination "Konavets won by resignation"]

1. e4 {[%clk 0:03:00.9]} 1... c5 {[%clk 0:03:00.1]} 2. Nf3 {[%clk 0:03:00.1]}
2... d6 {[%clk 0:03:00.2]} 3. d4 {[%clk 0:03:00.4]} 3... cxd4 {[%clk 0:03:00.8]}
4. Qxd4 {[%clk 0:03:01.1]} 4... Bd7 {[%clk 0:02:59.4]} 5. Nc3 {[%clk 0:03:00.6]}
5... Nc6 {[%clk 0:02:58.8]} 6. Qd2 {[%clk 0:03:01.1]} 6... Nf6 {[%clk 0:02:58]}
7. b3 {[%clk 0:03:01.4]} 7... g6 {[%clk 0:02:55.8]} 8. Bb2 {[%clk 0:03:01.3]}
8... Bg7 {[%clk 0:02:56.2]} 9. O-O-O {[%clk 0:03:00.7]} 9... O-O {[%clk
0:02:56.9]} 10. Kb1 {[%clk 0:02:59.1]} 10... Rc8 {[%clk 0:02:55]} 11. h4 {[%clk
0:02:56.4]} 11... Bg4 {[%clk 0:02:55.2]} 12. a3 {[%clk 0:02:40.8]} 12... Qa5
{[%clk 0:02:54.7]} 13. Be2 {[%clk 0:02:31.8]} 13... h5 {[%clk 0:02:49.3]} 14.
Nd5 {[%clk 0:02:12.3]} 14... Qxd2 {[%clk 0:02:48.1]} 15. Nxf6+ {[%clk
0:02:11.8]} 15... Bxf6 {[%clk 0:02:41]} 16. Rxd2 {[%clk 0:02:11.7]} 16... Bxb2
{[%clk 0:02:41.1]} 17. Kxb2 {[%clk 0:02:11.6]} 17... Kg7 {[%clk 0:02:40.4]} 18.
Nd4 {[%clk 0:01:59.4]} 18... Nxd4 {[%clk 0:02:36.6]} 19. Bxg4 {[%clk 0:01:58.6]}
19... Nxb3 {[%clk 0:02:08.8]} 20. Bxc8 {[%clk 0:01:11.2]} 20... Nxd2 {[%clk
0:02:08.6]} 21. Bxb7 {[%clk 0:01:11.4]} 21... Rb8 {[%clk 0:02:08.9]} 22. Kc3
{[%clk 0:01:04.4]} 22... Rxb7 {[%clk 0:02:09]} 23. Kxd2 {[%clk 0:01:04.7]} 23...
f5 {[%clk 0:02:09.9]} 24. exf5 {[%clk 0:00:57.5]} 24... gxf5 {[%clk 0:02:09.2]}
25. Rh3 {[%clk 0:00:57.1]} 25... f4 {[%clk 0:02:05.5]} 26. Rf3 {[%clk
0:00:50.1]} 26... e5 {[%clk 0:02:02.8]} 27. Rd3 {[%clk 0:00:41.3]} 27... Rb6
{[%clk 0:02:01.7]} 28. g3 {[%clk 0:00:41.4]} 28... fxg3 {[%clk 0:02:01.1]} 29.
Rxg3+ {[%clk 0:00:41.4]} 29... Kf6 {[%clk 0:02:01.3]} 30. Rg5 {[%clk 0:00:41.4]}
30... Ra6 {[%clk 0:02:00]} 31. Rxh5 {[%clk 0:00:41.1]} 31... Rxa3 {[%clk
0:02:00.1]} 32. Rh6+ {[%clk 0:00:41.2]} 32... Ke7 {[%clk 0:02:00.6]} 33. h5
{[%clk 0:00:37.2]} 33... a5 {[%clk 0:02:00.7]} 34. Rg6 {[%clk 0:00:36]} 34...
Rh3 {[%clk 0:02:00]} 35. h6 {[%clk 0:00:35.9]} 35... a4 {[%clk 0:02:00.7]} 36.
Kc1 {[%clk 0:00:24.3]} 36... a3 {[%clk 0:02:00.9]} 37. Kb1 {[%clk 0:00:24.2]}
37... Rh2 {[%clk 0:02:01.6]} 38. Rg7+ {[%clk 0:00:11.3]} 38... Kf6 {[%clk
0:01:57.3]} 39. Rd7 {[%clk 0:00:10.8]} 39... Ke6 {[%clk 0:01:55.7]} 40. Ra7
{[%clk 0:00:07.8]} 40... Rh1+ {[%clk 0:01:53.4]} 41. Ka2 {[%clk 0:00:07.4]}
41... Rxh6 {[%clk 0:01:53.2]} 42. Rxa3 {[%clk 0:00:07.1]} 42... Kd5 {[%clk
0:01:02.1]} 43. Rf3 {[%clk 0:00:06.6]} 43... Ke4 {[%clk 0:00:53.9]} 44. Rf8
{[%clk 0:00:06]} 44... Rh3 {[%clk 0:00:50.7]} 45. Kb2 {[%clk 0:00:05.5]} 45...
Rf3 {[%clk 0:00:50.7]} 46. Rd8 {[%clk 0:00:02.1]} 46... d5 {[%clk 0:00:51.1]}
47. Kc1 {[%clk 0:00:01.1]} 47... Rxf2 {[%clk 0:00:51.3]} 48. Kb2 {[%clk
0:00:01.6]} 48... d4 {[%clk 0:00:48.2]} 49. Rh8 {[%clk 0:00:02.2]} 49... Ke3
{[%clk 0:00:41.6]} 50. Rh3+ {[%clk 0:00:02.4]} 50... Rf3 {[%clk 0:00:41.8]} 51.
Rh1 {[%clk 0:00:02.6]} 51... e4 {[%clk 0:00:38.5]} 52. Kb3 {[%clk 0:00:03]}
52... Rf2 {[%clk 0:00:19.4]} 53. Rh3+ {[%clk 0:00:01.9]} 53... Kf4 {[%clk
0:00:18.9]} 54. Rh4+ {[%clk 0:00:02.3]} 54... Kf3 {[%clk 0:00:18.8]} 55. Rh3+
{[%clk 0:00:02.3]} 55... Kg4 {[%clk 0:00:19]} 56. Rh8 {[%clk 0:00:02.2]} 56...
e3 {[%clk 0:00:17.1]} 57. Re8 {[%clk 0:00:01.6]} 57... Rd2 {[%clk 0:00:17.4]}
58. Re4+ {[%clk 0:00:01.5]} 58... Kf3 {[%clk 0:00:17.5]} 59. Re8 {[%clk
0:00:02.1]} 59... e2 {[%clk 0:00:17.7]} 60. Kb2 {[%clk 0:00:02.1]} 60... Rd1
{[%clk 0:00:17.5]} 61. Rf8+ {[%clk 0:00:02.3]} 61... Kg4 {[%clk 0:00:18.1]} 62.
Rg8+ {[%clk 0:00:02.7]} 62... Kh5 {[%clk 0:00:18.8]} 0-1

[Event "Late-Titled-Tuesday-Blitz-February-06-2024"]
[Site "Chess.com"]
[Date "2024.02.06"]
[Round "1"]
[White "protectiago"]
[Black "masnyszachistaaa"]
[Result "1/2-1/2"]
[WhiteElo "2079"]
[BlackElo "2545"]
[TimeControl "180+1"]
[EndTime "14:08:05 PST"]
[Termination "Game drawn - insufficient material"]

1. d4 {[%clk 0:02:58.4]} 1... g6 {[%clk 0:02:53.6]} 2. c4 {[%clk 0:02:57.7]}
2... Bg7 {[%clk 0:02:52.5]} 3. Nc3 {[%clk 0:02:56.3]} 3... c5 {[%clk 0:02:50.3]}
4. d5 {[%clk 0:02:55.2]} 4... Bxc3+ {[%clk 0:02:49.8]} 5. bxc3 {[%clk
0:02:55.4]} 5... f5 {[%clk 0:02:48.6]} 6. Nf3 {[%clk 0:02:39.2]} 6... Nf6 {[%clk
0:02:37.2]} 7. Bh6 {[%clk 0:02:32.2]} 7... Qa5 {[%clk 0:02:15]} 8. Qb3 {[%clk
0:02:26.2]} 8... d6 {[%clk 0:02:05.1]} 9. Bg7 {[%clk 0:02:09.4]} 9... Rg8 {[%clk
0:02:03.8]} 10. Bxf6 {[%clk 0:02:09.8]} 10... exf6 {[%clk 0:02:04.7]} 11. Qb5+
{[%clk 0:02:09.9]} 11... Qxb5 {[%clk 0:02:04.3]} 12. cxb5 {[%clk 0:02:10.8]}
12... Nd7 {[%clk 0:01:32.9]} 13. e3 {[%clk 0:02:06.9]} 13... Ne5 {[%clk
0:01:32.3]} 14. Kd2 {[%clk 0:02:00.3]} 14... Ng4 {[%clk 0:01:13.7]} 15. Ke2
{[%clk 0:01:45.2]} 15... Bd7 {[%clk 0:01:10]} 16. Rb1 {[%clk 0:01:29.5]} 16...
Kf7 {[%clk 0:00:55.2]} 17. h3 {[%clk 0:01:29]} 17... Ne5 {[%clk 0:00:55]} 18.
Kd2 {[%clk 0:01:23.4]} 18... Rge8 {[%clk 0:00:54.8]} 19. Be2 {[%clk 0:01:17.6]}
19... c4 {[%clk 0:00:38.8]} 20. Nd4 {[%clk 0:01:15.3]} 20... g5 {[%clk
0:00:25.4]} 21. f4 {[%clk 0:01:15.1]} 21... gxf4 {[%clk 0:00:19.9]} 22. exf4
{[%clk 0:01:15.4]} 22... Ng6 {[%clk 0:00:18.5]} 23. g3 {[%clk 0:01:00.5]} 23...
Rac8 {[%clk 0:00:18.2]} 24. Rb4 {[%clk 0:00:59.9]} 24... Rc5 {[%clk 0:00:18.4]}
25. Bxc4 {[%clk 0:00:58.8]} 25... Rec8 {[%clk 0:00:18.3]} 26. Kd3 {[%clk
0:00:46]} 26... Ne7 {[%clk 0:00:18.6]} 27. Ra4 {[%clk 0:00:25]} 27... a6 {[%clk
0:00:14.4]} 28. Rb1 {[%clk 0:00:22.9]} 28... axb5 {[%clk 0:00:13.7]} 29. Nxb5
{[%clk 0:00:22]} 29... Bxb5 {[%clk 0:00:10.4]} 30. Rxb5 {[%clk 0:00:20.9]} 30...
Rxb5 {[%clk 0:00:10.4]} 31. Bxb5 {[%clk 0:00:20.7]} 31... Rc5 {[%clk 0:00:09.1]}
32. c4 {[%clk 0:00:20.3]} 32... Nxd5 {[%clk 0:00:08.5]} 33. cxd5 {[%clk
0:00:19.6]} 33... Rxb5 {[%clk 0:00:08.6]} 34. Kc4 {[%clk 0:00:15.4]} 34... Rb2
{[%clk 0:00:08.5]} 35. Rb4 {[%clk 0:00:14]} 35... Rxa2 {[%clk 0:00:07.9]} 36.
Rxb7+ {[%clk 0:00:14]} 36... Kg6 {[%clk 0:00:08.6]} 37. Rd7 {[%clk 0:00:13.4]}
37... Ra3 {[%clk 0:00:07.1]} 38. g4 {[%clk 0:00:11.8]} 38... Rxh3 {[%clk
0:00:06]} 39. gxf5+ {[%clk 0:00:09.7]} 39... Kxf5 {[%clk 0:00:06.9]} 40. Rxd6
{[%clk 0:00:10.3]} 40... h5 {[%clk 0:00:06.5]} 41. Rd8 {[%clk 0:00:08.8]} 41...
Kxf4 {[%clk 0:00:06.5]} 42. Rf8 {[%clk 0:00:07.7]} 42... f5 {[%clk 0:00:06.2]}
43. d6 {[%clk 0:00:08.1]} 43... Rh1 {[%clk 0:00:06.3]} 44. d7 {[%clk 0:00:08]}
44... Rc1+ {[%clk 0:00:06.7]} 45. Kb3 {[%clk 0:00:06.3]} 45... Rd1 {[%clk
0:00:06.5]} 46. d8=Q {[%clk 0:00:04]} 46... Rxd8 {[%clk 0:00:07.4]} 47. Rxd8
{[%clk 0:00:04.2]} 47... h4 {[%clk 0:00:08.3]} 48. Rh8 {[%clk 0:00:04.7]} 48...
Kg3 {[%clk 0:00:08.4]} 49. Kc3 {[%clk 0:00:05.1]} 49... h3 {[%clk 0:00:07.1]}
50. Kd2 {[%clk 0:00:05.1]} 50... h2 {[%clk 0:00:05.4]} 51. Ke3 {[%clk
0:00:04.6]} 51... Kg2 {[%clk 0:00:04.2]} 52. Kf4 {[%clk 0:00:04.3]} 52... h1=Q
{[%clk 0:00:02.8]} 53. Rxh1 {[%clk 0:00:04.4]} 53... Kxh1 {[%clk 0:00:03.7]} 54.
Kxf5 {[%clk 0:00:04.8]} 1/2-1/2